[Event "IX Iberoamericano Championship 2023"]
[Site "Panama City"]
[Date "2023.11.28"]
[Round "4.11"]
[White "Delgado Rosas, Alex Antonio"]
[Black "Soto Hernandez, Henry"]
[Result "1/2-1/2"]
[ECO "D32"]
[WhiteElo "2105"]
[BlackElo "2490"]
[Annotator "RC"]
[PlyCount "66"]
[EventDate "2023.11.27"]
[EventType "swiss"]
[EventCountry "PAN"]
[SourceTitle "playchess.com"]
[Source "ChessBase"]
[SourceQuality "1"]
[TimeControl "5400+30"]

1. d4 {[%emt 0:00:06]} d5 {[%emt 0:00:04]} 2. Nf3 {[%emt 0:00:09]} c5 {[%emt 0:00:04]} 3. dxc5 {[%emt 0:04:44]} e6 {[%emt 0:00:19]} 4. e3 {[%emt 0:02:13]} Bxc5 {[%emt 0:00:06]} 5. a3 {[%emt 0:00:19]} a5 {[%emt 0:01:35]} 6. c4 {[%emt 0:00:44]} Nf6 {[%emt 0:00:08]} 7. Nc3 {[%emt 0:00:21]} O-O {[%emt 0:00:09]} 8. cxd5 {[%emt 0:01:53]} exd5 {[%emt 0:00:05]} 9. Be2 {[%emt 0:00:45]} Nc6 {[%emt 0:00:21]} 10. O-O {[%emt 0:00:45]} Be6 {[%emt 0:06:49]} 11. Qa4 {[%emt 0:03:39]} Qe7 {[%emt 0:02:48]} 12. b3 {[%emt 0:02:11]} Rfd8 {[%emt 0:01:02]} 13. Rd1 {[%emt 0:06:01]} Bf5 {[%emt 0:14:22]} 14. Nb5 {[%emt 0:04:54]} Ne4 {[%emt 0:05:07]} 15. Bd2 {[%emt 0:13:49]} Bd7 {[%emt 0:13:53]} 16. Be1 {[%emt 0:09:46]} Be8 {[%emt 0:12:46]} 17. Rac1 {[%emt 0:19:17]} b6 {[%emt 0:02:21]} 18. Nd2 {[%emt 0:14:08]} Nf6 {[%emt 0:12:49]} 19. Qf4 {[%emt 0:05:15]} d4 {[%emt 0:01:51]} 20. Nc4 {[%emt 0:01:13]} Rac8 {[%emt 0:10:20]} 21. Bf3 {[%emt 0:01:17]} dxe3 {[%emt 0:02:01]} 22. Nxe3 {[%emt 0:00:16]} Ne5 {[%emt 0:02:12]} 23. Be2 {[%emt 0:01:41]} Ng6 {[%emt 0:01:00]} 24. Qg3 {[%emt 0:02:37]} Ne4 {[%emt 0:01:07]} 25. Nf5 {[%emt 0:00:48]} Qf6 {[%emt 0:05:22]} 26. Qf3 {[%emt 0:00:01]} Ng5 {[%emt 0:00:07]} 27. Nh6+ {[%emt 0:00:08]} Kf8 {[%emt 0:00:17]} 28. Qxf6 {[%emt 0:00:12]} gxf6 {[%emt 0:00:01]} 29. b4 {[%emt 0:00:36]} axb4 {[%emt 0:00:29]} 30. axb4 {[%emt 0:00:02]} Nf4 {[%emt 0:01:47]} 31. Bf1 {[%emt 0:00:31]} Rxd1 {[%emt 0:01:06]} 32. Rxd1 {[%emt 0:00:01]} Be7 {[%emt 0:00:13]} 33. Nf5 {[%emt 0:00:25]} Rc2 {[%emt 0:00:45]} 1/2-1/2

[Event "IX Iberoamericano Championship 2023"]
[Site "Panama City"]
[Date "2023.11.28"]
[Round "4.12"]
[White "Fernandez, Maria Florencia"]
[Black "Diaz Perez, Michel Alejandro"]
[Result "0-1"]
[ECO "E32"]
[WhiteElo "2099"]
[BlackElo "2459"]
[Annotator "RC"]
[PlyCount "106"]
[EventDate "2023.11.27"]
[EventType "swiss"]
[EventCountry "PAN"]
[SourceTitle "playchess.com"]
[Source "ChessBase"]
[SourceQuality "1"]
[TimeControl "5400+30"]

1. d4 {[%emt 0:00:03]} Nf6 {[%emt 0:00:11]} 2. c4 {[%emt 0:00:09]} e6 {[%emt 0:00:12]} 3. Nc3 {[%emt 0:00:07]} Bb4 {[%emt 0:00:05]} 4. Qc2 {[%emt 0:00:15]} b6 {[%emt 0:00:13]} 5. e4 {[%emt 0:02:08]} c5 {[%emt 0:00:35]} 6. d5 {[%emt 0:01:04]} Qe7 {[%emt 0:00:53]} 7. Nge2 {[%emt 0:01:16]} exd5 {[%emt 0:01:27]} 8. exd5 {[%emt 0:01:34]} Ne4 {[%emt 0:15:15]} 9. Be3 {[%emt 0:16:31]} Nd6 {[%emt 0:21:01]} 10. Ng3 {[%emt 0:10:09]} Qe5 {[%emt 0:04:28]} 11. O-O-O {[%emt 0:15:51]} Bxc3 12. bxc3 {[%emt 0:47:23]} O-O {[%emt 0:52:10]} 13. Bd3 {[%emt 0:00:30]} f5 {[%emt 0:00:30]} 14. Rde1 {[%emt 0:00:00]} Qf6 {[%emt 0:00:30]} 15. h4 {[%emt 0:01:00]} h6 {[%emt 0:00:30]} 16. Nh5 {[%emt 0:00:30]} Qf7 {[%emt 0:00:30]} 17. Bf4 {[%emt 0:00:30]} Ne4 {[%emt 0:00:00]} 18. Ng3 {[%emt 0:00:30]} d6 {[%emt 0:01:00]} 19. Bxe4 {[%emt 0:00:30]} fxe4 {[%emt 0:00:00]} 20. Bxd6 {[%emt 0:00:30]} Rd8 {[%emt 0:01:00]} 21. Bxb8 {[%emt 0:00:00]} Rxb8 {[%emt 0:00:30]} 22. Rxe4 {[%emt 0:01:00]} b5 {[%emt 0:00:30]} 23. Rhe1 {[%emt 0:00:30]} bxc4 {[%emt 0:00:30]} 24. R1e3 {[%emt 0:00:30]} Qxd5 {[%emt 0:00:00]} 25. Re8+ {[%emt 0:00:00]} Rxe8 {[%emt 0:00:00]} 26. Rxe8+ {[%emt 0:01:00]} Kf7 {[%emt 0:01:30]} 27. Qe4 {[%emt 0:00:30]} Qxe4 {[%emt 0:00:00]} 28. Rxe4 {[%emt 0:00:00]} Rb5 {[%emt 0:01:00]} 29. Rxc4 {[%emt 0:00:00]} Ra5 {[%emt 0:00:00]} 30. Ne4 {[%emt 0:01:30]} Be6 {[%emt 0:00:00]} 31. Rxc5 {[%emt 0:00:30]} Rxa2 {[%emt 0:01:30]} 32. h5 {[%emt 0:00:30]} a5 {[%emt 0:00:00]} 33. Rc7+ {[%emt 0:00:00]} Kg8 {[%emt 0:01:00]} 34. g3 {[%emt 0:01:00]} a4 {[%emt 0:00:00]} 35. f4 {[%emt 0:00:30]} a3 {[%emt 0:00:00]} 36. Ra7 {[%emt 0:00:30]} Ra1+ {[%emt 0:00:00]} 37. Kd2 {[%emt 0:00:00]} a2 {[%emt 0:00:00]} 38. Nc5 {[%emt 0:00:11]} Bd5 {[%emt 0:00:00]} 39. c4 {[%emt 0:00:48]} Bxc4 {[%emt 0:00:00]} 40. Ra8+ {[%emt 0:00:14]} Kf7 {[%emt 0:00:00]} 41. Ne4 {[%emt 0:00:17]} Ke6 {[%emt 0:00:00]} 42. Nc3 {[%emt 0:00:53]} Rg1 {[%emt 0:00:00]} 43. Nxa2 {[%emt 0:00:35]} Bxa2 {[%emt 0:00:00]} 44. Ke2 {[%emt 0:00:30]} Rg2+ {[%emt 0:00:00]} 45. Kf1 {[%emt 0:00:25]} Bd5 {[%emt 0:00:00]} 46. Ra6+ {[%emt 0:00:06]} Kf7 {[%emt 0:00:00]} 47. Ra7+ {[%emt 0:00:25]} Kg8 {[%emt 0:00:00]} 48. Rd7 {[%emt 0:00:26]} Bc6 {[%emt 0:00:00]} 49. Rd6 {[%emt 0:01:02]} Rc2 {[%emt 0:00:00]} 50. g4 {[%emt 0:00:19]} Bg2+ {[%emt 0:00:00]} 51. Ke1 {[%emt 0:00:22]} Bf3 {[%emt 0:00:00]} 52. Rg6 {[%emt 0:00:55]} Rg2 {[%emt 0:00:00]} 53. g5 {[%emt 0:00:11]} Bxh5 {[%emt 0:00:00]} 0-1

[Event "IX Iberoamericano Championship 2023"]
[Site "Panama City"]
[Date "2023.11.28"]
[Round "4.13"]
[White "Sanchez Alvarez, Roberto Carlos"]
[Black "Morales Carlos"]
[Result "1-0"]
[ECO "D42"]
[WhiteElo "2437"]
[BlackElo "2102"]
[Annotator "RC"]
[PlyCount "53"]
[EventDate "2023.11.27"]
[EventType "swiss"]
[EventCountry "PAN"]
[SourceTitle "playchess.com"]
[Source "ChessBase"]
[SourceQuality "1"]
[TimeControl "5400+30"]

1. d4 {[%emt 0:00:03]} Nf6 {[%emt 0:03:11]} 2. c4 {[%emt 0:00:15]} e6 {[%emt 0:00:38]} 3. Nc3 {[%emt 0:00:11]} d5 {[%emt 0:00:06]} 4. cxd5 {[%emt 0:02:47]} Nxd5 {[%emt 0:00:18]} 5. Nf3 {[%emt 0:02:12]} c5 {[%emt 0:01:15]} 6. e3 {[%emt 0:00:09]} Nc6 {[%emt 0:01:50]} 7. Bd3 {[%emt 0:02:43]} cxd4 {[%emt 0:02:14]} 8. exd4 {[%emt 0:00:04]} Be7 {[%emt 0:00:08]} 9. O-O {[%emt 0:00:21]} O-O {[%emt 0:00:43]} 10. Re1 {[%emt 0:00:40]} Nxc3 {[%emt 0:08:36]} 11. bxc3 {[%emt 0:00:32]} b6 {[%emt 0:00:20]} 12. h4 {[%emt 0:00:26]} Bf6 {[%emt 0:03:57]} 13. Ng5 {[%emt 0:03:41]} g6 {[%emt 0:08:04]} 14. Qf3 {[%emt 0:00:43]} Bd7 {[%emt 0:00:29]} 15. Qg3 {[%emt 0:01:50]} Ne7 {[%emt 0:05:11]} 16. h5 {[%emt 0:13:00]} Nf5 {[%emt 0:03:43]} 17. Bxf5 {[%emt 0:01:00]} exf5 {[%emt 0:00:08]} 18. hxg6 {[%emt 0:00:14]} fxg6 {[%emt 0:01:16]} 19. Qh4 {[%emt 0:00:03]} h5 {[%emt 0:01:19]} 20. Qg3 {[%emt 0:00:02]} Re8 {[%emt 0:09:19]} 21. Bf4 {[%emt 0:05:19]} Rc8 {[%emt 0:01:49]} 22. Ne6 {[%emt 0:13:09]} Rxe6 {[%emt 0:05:33]} 23. Qxg6+ {[%emt 0:00:27]} Kf8 {[%emt 0:00:31]} 24. Bh6+ {[%emt 0:20:44]} Ke7 {[%emt 0:00:28]} 25. Qxf5 {[%emt 0:00:02]} Rxe1+ {[%emt 0:07:39]} 26. Rxe1+ {[%emt 0:00:28]} Kd6 {[%emt 0:00:11]} 27. Qe4 {[%emt 0:32:55]} 1-0

[Event "IX Iberoamericano Championship 2023"]
[Site "Panama City"]
[Date "2023.11.28"]
[Round "4.14"]
[White "Duran Vega, Sergio"]
[Black "Obregon Garcia, Roxangel"]
[Result "1-0"]
[ECO "E06"]
[WhiteElo "2392"]
[BlackElo "2138"]
[Annotator "RC"]
[PlyCount "69"]
[EventDate "2023.11.27"]
[EventType "swiss"]
[EventCountry "PAN"]
[SourceTitle "playchess.com"]
[Source "ChessBase"]
[SourceQuality "1"]
[TimeControl "5400+30"]

1. Nf3 {[%emt 0:04:09]} d5 {[%emt 0:00:04]} 2. g3 {[%emt 0:00:16]} Nf6 {[%emt 0:00:17]} 3. Bg2 {[%emt 0:00:20]} e6 {[%emt 0:00:06]} 4. d4 {[%emt 0:01:12]} Be7 {[%emt 0:00:04]} 5. O-O {[%emt 1:27:03]} O-O {[%emt 0:00:04]} 6. c4 {[%emt 0:00:00]} c6 {[%emt 0:00:40]} 7. Nbd2 {[%emt 0:00:00]} b6 {[%emt 0:03:33]} 8. b3 {[%emt 0:00:00]} a5 {[%emt 0:01:42]} 9. Bb2 {[%emt 0:00:00]} Bb7 {[%emt 0:05:07]} 10. Ne5 {[%emt 0:00:00]} b5 {[%emt 0:06:31]} 11. e4 {[%emt 0:00:00]} a4 {[%emt 0:06:37]} 12. exd5 {[%emt 0:00:00]} exd5 {[%emt 0:05:56]} 13. c5 {[%emt 0:00:00]} b4 {[%emt 0:11:56]} 14. a3 {[%emt 0:00:00]} Ba6 {[%emt 0:13:49]} 15. Re1 {[%emt 0:00:00]} bxa3 {[%emt 0:02:12]} 16. Rxa3 {[%emt 0:00:00]} axb3 {[%emt 0:00:04]} 17. Qxb3 {[%emt 0:00:00]} Ra7 {[%emt 0:01:33]} 18. Qa2 {[%emt 0:00:00]} Ne8 {[%emt 0:06:20]} 19. Bc3 {[%emt 0:00:00]} Nc7 {[%emt 0:01:29]} 20. Ba5 {[%emt 0:00:00]} Bb5 {[%emt 0:00:41]} 21. Bh3 {[%emt 0:00:00]} Bf6 {[%emt 0:05:07]} 22. Ndf3 {[%emt 0:00:00]} Re8 {[%emt 0:02:06]} 23. Rae3 {[%emt 0:00:00]} g6 {[%emt 0:08:16]} 24. Qd2 {[%emt 0:00:00]} Rf8 {[%emt 0:06:02]} 25. Bb6 {[%emt 0:00:00]} Rb7 {[%emt 0:01:39]} 26. Qa5 {[%emt 0:00:00]} Bg7 {[%emt 0:02:42]} 27. Qd2 {[%emt 0:00:00]} h6 {[%emt 0:01:43]} 28. Ra3 {[%emt 0:00:00]} Kh7 {[%emt 0:00:35]} 29. Qa2 {[%emt 0:00:29]} Qf6 {[%emt 0:01:25]} 30. Ng4 {[%emt 0:05:13]} Qd8 {[%emt 0:00:27]} 31. Ra7 {[%emt 0:00:42]} Rxa7 {[%emt 0:00:08]} 32. Qxa7 {[%emt 0:00:03]} Nba6 {[%emt 0:00:01]} 33. Nge5 {[%emt 0:00:19]} Qa8 {[%emt 0:00:41]} 34. Qxa8 {[%emt 0:01:17]} Nxa8 {[%emt 0:01:22]} 35. Nd7 {[%emt 0:00:20]} 1-0

[Event "IX Iberoamericano Championship 2023"]
[Site "Panama City"]
[Date "2023.11.28"]
[Round "4.15"]
[White "Mendez Machado, Andre"]
[Black "Roselli Mailhe, Bernardo"]
[Result "0-1"]
[ECO "C03"]
[WhiteElo "2096"]
[BlackElo "2364"]
[Annotator "RC"]
[PlyCount "66"]
[EventDate "2023.11.27"]
[EventType "swiss"]
[EventCountry "PAN"]
[SourceTitle "playchess.com"]
[Source "ChessBase"]
[SourceQuality "1"]
[TimeControl "5400+30"]

1. e4 {[%emt 0:00:06]} e6 {[%emt 0:00:41]} 2. d4 {[%emt 0:00:03]} d5 {[%emt 0:00:05]} 3. Nd2 {[%emt 0:00:03]} a6 {[%emt 0:00:18]} 4. e5 {[%emt 0:00:48]} c5 {[%emt 0:01:03]} 5. c3 {[%emt 0:01:24]} Nc6 {[%emt 0:00:09]} 6. Ngf3 {[%emt 0:00:03]} cxd4 {[%emt 0:05:54]} 7. cxd4 {[%emt 0:00:14]} Qb6 {[%emt 0:03:22]} 8. Bd3 {[%emt 0:00:10]} Bd7 {[%emt 0:01:34]} 9. O-O {[%emt 0:00:14]} Rc8 {[%emt 0:00:52]} 10. a3 {[%emt 0:26:16]} Na5 {[%emt 0:01:08]} 11. b4 {[%emt 0:04:12]} Nc4 {[%emt 0:00:08]} 12. Bxc4 {[%emt 0:03:20]} dxc4 {[%emt 0:00:05]} 13. Ne4 {[%emt 0:02:35]} Bc6 {[%emt 0:00:13]} 14. Nc3 {[%emt 0:17:26]} Ne7 {[%emt 0:02:12]} 15. Qe2 {[%emt 0:13:06]} h6 {[%emt 0:10:15]} 16. Be3 {[%emt 0:02:28]} Qd8 {[%emt 0:06:34]} 17. Nd2 {[%emt 0:08:06]} Nd5 {[%emt 0:13:55]} 18. Nde4 {[%emt 0:00:39]} Nxc3 {[%emt 0:02:17]} 19. Nxc3 {[%emt 0:00:05]} Bd5 {[%emt 0:00:05]} 20. f4 {[%emt 0:01:13]} g6 {[%emt 0:00:30]} 21. h3 {[%emt 0:04:56]} h5 {[%emt 0:00:27]} 22. g3 {[%emt 0:03:14]} Be7 {[%emt 0:00:18]} 23. h4 {[%emt 0:02:22]} Qd7 {[%emt 0:04:04]} 24. Rfb1 {[%emt 0:01:33]} O-O {[%emt 0:06:13]} 25. Kh2 {[%emt 0:01:45]} Kg7 {[%emt 0:01:11]} 26. Qd2 {[%emt 0:00:52]} Rfd8 {[%emt 0:00:36]} 27. Rb2 {[%emt 0:02:44]} b5 {[%emt 0:00:49]} 28. Qf2 {[%emt 0:03:33]} Ra8 {[%emt 0:00:22]} 29. a4 {[%emt 0:00:35]} a5 {[%emt 0:00:53]} 30. Nxd5 {[%emt 0:00:35]} Qxd5 {[%emt 0:00:14]} 31. axb5 {[%emt 0:00:44]} axb4 {[%emt 0:00:12]} 32. Rxa8 {[%emt 0:00:11]} Rc8 {[%emt 0:39:51]} 33. Rb8 Rxb8 {[%emt 0:00:00]} 0-1

[Event "IX Iberoamericano Championship 2023"]
[Site "Panama City"]
[Date "2023.11.28"]
[Round "4.16"]
[White "Soto, Miguel Angel"]
[Black "Battikh, Jose Miguel"]
[Result "1-0"]
[ECO "A48"]
[WhiteElo "2359"]
[BlackElo "2098"]
[Annotator "RC"]
[PlyCount "35"]
[EventDate "2023.11.27"]
[EventType "swiss"]
[EventCountry "PAN"]
[SourceTitle "playchess.com"]
[Source "ChessBase"]
[SourceQuality "1"]
[TimeControl "5400+30"]

1. d4 {[%emt 0:01:03]} Nf6 {[%emt 0:00:33]} 2. Nf3 {[%emt 0:00:42]} g6 {[%emt 0:00:53]} 3. Bg5 {[%emt 0:01:06]} Bg7 {[%emt 0:00:54]} 4. Nbd2 {[%emt 0:00:37]} O-O {[%emt 0:02:13]} 5. e4 {[%emt 0:04:46]} d5 {[%emt 0:02:05]} 6. exd5 {[%emt 0:04:35]} Nxd5 {[%emt 0:00:43]} 7. Bc4 {[%emt 0:02:25]} Nb6 {[%emt 0:01:37]} 8. Bb3 {[%emt 0:00:41]} Nc6 {[%emt 0:07:36]} 9. c3 {[%emt 0:01:24]} h6 {[%emt 0:01:49]} 10. Bh4 {[%emt 0:02:00]} Bf5 {[%emt 0:03:29]} 11. O-O {[%emt 0:00:59]} Qd7 {[%emt 0:09:18]} 12. Re1 {[%emt 0:01:12]} Rae8 {[%emt 0:02:48]} 13. Ne4 {[%emt 0:03:50]} Bxe4 {[%emt 0:02:19]} 14. Rxe4 {[%emt 0:01:36]} e5 {[%emt 0:01:39]} 15. dxe5 {[%emt 0:10:00]} Qxd1+ {[%emt 0:01:30]} 16. Rxd1 {[%emt 0:07:47]} Rd8 {[%emt 0:10:08]} 17. e6 {[%emt 0:11:28]} a5 {[%emt 0:06:40]} 18. exf7+ {[%emt 0:10:26]} 1-0

[Event "IX Iberoamericano Championship 2023"]
[Site "Panama City"]
[Date "2023.11.28"]
[Round "4.17"]
[White "Gonzalez Ochoa, Yoana"]
[Black "Martins, Bruno Andre Leite"]
[Result "0-1"]
[ECO "B90"]
[WhiteElo "2085"]
[BlackElo "2323"]
[Annotator "RC"]
[PlyCount "140"]
[EventDate "2023.11.27"]
[EventType "swiss"]
[EventCountry "PAN"]
[SourceTitle "playchess.com"]
[Source "ChessBase"]
[SourceQuality "1"]
[TimeControl "5400+30"]

1. e4 {[%emt 0:00:30]} c5 {[%emt 0:02:05]} 2. Nf3 {[%emt 1:31:00]} d6 3. d4 {[%emt 0:00:00]} cxd4 {[%emt 0:00:21]} 4. Nxd4 {[%emt 0:00:00]} Nf6 {[%emt 0:00:11]} 5. Nc3 {[%emt 0:00:00]} a6 {[%emt 0:00:07]} 6. h3 {[%emt 0:00:00]} e5 {[%emt 0:00:10]} 7. Nde2 {[%emt 0:00:00]} h5 {[%emt 0:00:13]} 8. Bg5 {[%emt 0:00:00]} Be6 {[%emt 0:00:52]} 9. Bxf6 {[%emt 0:00:00]} Qxf6 {[%emt 0:00:08]} 10. Nd5 {[%emt 0:00:00]} Qd8 {[%emt 1:31:23]} 11. Qd3 {[%emt 0:00:00]} g6 {[%emt 0:00:00]} 12. O-O-O {[%emt 0:00:00]} Nd7 {[%emt 0:00:00]} 13. Nec3 {[%emt 0:00:00]} b5 {[%emt 0:00:00]} 14. Kb1 {[%emt 0:00:00]} Nc5 {[%emt 0:00:00]} 15. Qe2 {[%emt 0:00:00]} Bg7 {[%emt 0:00:00]} 16. g3 {[%emt 0:00:00]} Rb8 {[%emt 0:00:00]} 17. a3 {[%emt 0:00:00]} O-O {[%emt 0:00:00]} 18. h4 {[%emt 0:00:00]} Bd7 {[%emt 0:00:00]} 19. Bh3 {[%emt 0:00:00]} Ne6 {[%emt 0:00:00]} 20. f3 {[%emt 0:00:00]} a5 {[%emt 0:00:00]} 21. b4 {[%emt 0:00:00]} axb4 {[%emt 0:00:00]} 22. axb4 {[%emt 0:00:00]} Rc8 {[%emt 0:00:00]} 23. Qd3 {[%emt 0:00:00]} Rc4 {[%emt 0:00:00]} 24. Ne2 {[%emt 0:00:00]} Qa8 {[%emt 0:00:00]} 25. Qb3 {[%emt 0:00:00]} Qa7 {[%emt 0:00:00]} 26. Ne3 {[%emt 0:00:00]} Ra8 {[%emt 0:00:00]} 27. Kb2 {[%emt 0:00:00]} Nd4 {[%emt 0:00:00]} 28. Ra1 {[%emt 0:00:00]} Nxb3 {[%emt 0:00:00]} 29. Rxa7 {[%emt 0:00:00]} Rxa7 {[%emt 0:00:00]} 30. Nxc4 {[%emt 0:00:00]} Bxh3 {[%emt 0:00:00]} 31. Rxh3 {[%emt 0:00:00]} Nd4 {[%emt 0:00:21]} 32. Nxd4 {[%emt 0:00:00]} exd4 {[%emt 0:00:11]} 33. Nd2 {[%emt 0:00:00]} Ra4 {[%emt 0:03:55]} 34. Rh1 {[%emt 0:00:00]} Rxb4+ {[%emt 0:00:08]} 35. Ka3 {[%emt 0:00:00]} Ra4+ {[%emt 0:00:07]} 36. Kb3 {[%emt 0:00:00]} Kf8 {[%emt 0:02:48]} 37. Rd1 {[%emt 0:00:00]} Ke7 {[%emt 0:00:36]} 38. Nb1 {[%emt 0:00:00]} Kd7 {[%emt 0:01:20]} 39. Rd3 {[%emt 0:00:32]} Kc6 {[%emt 0:00:49]} 40. f4 {[%emt 0:01:08]} Kc5 {[%emt 0:01:19]} 41. Nd2 {[%emt 0:00:09]} f5 {[%emt 0:02:05]} 42. exf5 {[%emt 0:01:19]} gxf5 {[%emt 0:00:02]} 43. Nf3 {[%emt 0:02:35]} Rb4+ {[%emt 0:01:09]} 44. Ka3 {[%emt 0:01:03]} Rc4 {[%emt 0:00:08]} 45. Kb3 {[%emt 0:00:11]} Kd5 {[%emt 0:00:50]} 46. Ng5 {[%emt 0:01:38]} Bf6 {[%emt 0:00:37]} 47. Nf3 {[%emt 0:06:21]} Bd8 {[%emt 0:00:51]} 48. Kb2 {[%emt 0:01:38]} Ba5 {[%emt 0:00:32]} 49. Kc1 {[%emt 0:01:23]} Bc3 {[%emt 0:00:25]} 50. Nd2 {[%emt 0:01:18]} Bxd2+ {[%emt 0:00:22]} 51. Kxd2 {[%emt 0:00:14]} b4 {[%emt 0:00:44]} 52. Rb3 {[%emt 0:01:55]} Kc5 {[%emt 0:00:46]} 53. Rb1 {[%emt 0:00:37]} Rc3 {[%emt 0:00:19]} 54. Ra1 {[%emt 0:00:44]} Kd5 {[%emt 0:00:35]} 55. Ra8 {[%emt 0:00:43]} Rxg3 {[%emt 0:00:10]} 56. Rh8 {[%emt 0:00:02]} Ke4 {[%emt 0:00:54]} 57. Rxh5 {[%emt 0:00:12]} b3 {[%emt 0:00:32]} 58. cxb3 {[%emt 0:00:25]} Rxb3 {[%emt 0:00:29]} 59. Rh6 {[%emt 0:00:09]} Rb2+ {[%emt 0:00:43]} 60. Ke1 {[%emt 0:00:05]} d5 {[%emt 0:00:21]} 61. h5 {[%emt 0:01:13]} Rh2 {[%emt 0:00:33]} 62. Re6+ {[%emt 0:01:40]} Kxf4 {[%emt 0:00:08]} 63. h6 {[%emt 0:00:04]} d3 {[%emt 0:00:21]} 64. Kd1 {[%emt 0:00:33]} d4 {[%emt 0:00:29]} 65. Ke1 {[%emt 0:00:14]} Kf3 {[%emt 0:00:17]} 66. Rd6 {[%emt 0:00:12]} d2+ {[%emt 0:00:48]} 67. Kd1 {[%emt 0:00:02]} f4 {[%emt 0:00:52]} 68. Rxd4 {[%emt 0:00:20]} Ke3 {[%emt 0:00:08]} 69. Rd6 {[%emt 0:00:15]} Rh1+ {[%emt 0:00:07]} 70. Kc2 {[%emt 0:00:01]} Rc1+ {[%emt 0:00:08]} 0-1

[Event "IX Iberoamericano Championship 2023"]
[Site "Panama City"]
[Date "2023.11.28"]
[Round "4.18"]
[White "Noboa Silva, Kevin"]
[Black "Portal Ramos, Cristhian"]
[Result "1/2-1/2"]
[ECO "D10"]
[WhiteElo "2318"]
[BlackElo "2085"]
[Annotator "RC"]
[PlyCount "88"]
[EventDate "2023.11.27"]
[EventType "swiss"]
[EventCountry "PAN"]
[SourceTitle "playchess.com"]
[Source "ChessBase"]
[SourceQuality "1"]
[TimeControl "5400+30"]

1. d4 {[%emt 0:00:14]} d5 {[%emt 0:00:07]} 2. c4 {[%emt 0:00:24]} c6 {[%emt 0:00:06]} 3. Bf4 {[%emt 0:01:27]} e6 {[%emt 0:03:24]} 4. cxd5 {[%emt 0:00:35]} exd5 {[%emt 0:00:38]} 5. e3 {[%emt 0:00:21]} Nf6 {[%emt 0:01:11]} 6. Bd3 {[%emt 0:00:50]} Qb6 {[%emt 0:04:13]} 7. Qc2 {[%emt 0:01:39]} Na6 {[%emt 0:09:11]} 8. a3 {[%emt 0:01:34]} Qa5+ {[%emt 0:03:31]} 9. Nc3 {[%emt 0:02:12]} Nb4 {[%emt 0:00:33]} 10. Qd1 {[%emt 0:00:13]} Nxd3+ {[%emt 0:00:24]} 11. Qxd3 {[%emt 0:00:07]} Ne4 {[%emt 0:05:02]} 12. Nge2 {[%emt 0:07:21]} Bf5 {[%emt 0:02:53]} 13. O-O {[%emt 0:12:35]} Be7 {[%emt 0:13:57]} 14. f3 {[%emt 0:17:59]} Nxc3 {[%emt 0:01:13]} 15. Qxc3 {[%emt 0:00:05]} Qxc3 {[%emt 0:01:18]} 16. Nxc3 {[%emt 0:00:13]} O-O {[%emt 0:00:42]} 17. e4 {[%emt 0:03:48]} dxe4 {[%emt 0:02:06]} 18. fxe4 {[%emt 0:00:06]} Bg6 {[%emt 0:00:02]} 19. Rad1 {[%emt 0:00:57]} Rad8 {[%emt 0:08:48]} 20. d5 {[%emt 0:01:45]} Bc5+ {[%emt 0:03:57]} 21. Kh1 {[%emt 0:00:11]} Rfe8 {[%emt 0:01:18]} 22. d6 {[%emt 0:05:05]} Rd7 {[%emt 0:04:13]} 23. b4 {[%emt 0:01:58]} Bb6 {[%emt 0:00:04]} 24. e5 {[%emt 0:01:07]} f6 {[%emt 0:01:53]} 25. exf6 {[%emt 0:05:13]} gxf6 {[%emt 0:00:07]} 26. h3 {[%emt 0:00:39]} Be3 {[%emt 0:07:31]} 27. Bh2 {[%emt 0:35:22]} Re6 {[%emt 0:00:52]} 28. Ne2 {[%emt 0:00:00]} Kf7 {[%emt 0:08:07]} 29. Nf4 {[%emt 0:00:00]} Bxf4 {[%emt 0:03:45]} 30. Bxf4 {[%emt 0:00:00]} Re2 {[%emt 0:00:46]} 31. Rfe1 {[%emt 0:00:00]} Rxe1+ {[%emt 0:00:17]} 32. Rxe1 {[%emt 0:00:00]} Bd3 {[%emt 0:00:35]} 33. Kh2 {[%emt 0:00:00]} f5 {[%emt 0:03:06]} 34. g4 {[%emt 0:00:00]} Be4 {[%emt 0:00:20]} 35. gxf5 {[%emt 0:00:00]} Bxf5 {[%emt 0:00:03]} 36. Kg3 {[%emt 0:00:00]} Be6 {[%emt 0:00:38]} 37. h4 {[%emt 0:00:00]} Rd8 {[%emt 0:01:40]} 38. Rf1 {[%emt 0:00:00]} Rg8+ {[%emt 0:02:10]} 39. Kf2 {[%emt 0:00:00]} Ke8 {[%emt 0:00:13]} 40. Ke3 {[%emt 0:00:00]} Kd7 {[%emt 0:00:35]} 41. Be5 {[%emt 0:01:27]} b6 {[%emt 0:01:56]} 42. Rf6 {[%emt 0:01:31]} Rg6 {[%emt 0:01:02]} 43. Rxg6 {[%emt 0:00:48]} hxg6 {[%emt 0:00:05]} 44. Kf4 {[%emt 0:00:03]} Bb3 {[%emt 0:00:40]} 1/2-1/2

[Event "IX Iberoamericano Championship 2023"]
[Site "Panama City"]
[Date "2023.11.29"]
[Round "5.1"]
[White "Henriquez Villagra, Cristobal"]
[Black "Mareco, Sandro"]
[Result "1/2-1/2"]
[ECO "C09"]
[WhiteElo "2630"]
[BlackElo "2606"]
[Annotator "TA"]
[PlyCount "41"]
[EventDate "2023.11.27"]
[EventType "swiss"]
[EventCountry "PAN"]
[SourceTitle "playchess.com"]
[Source "ChessBase"]
[SourceQuality "1"]
[TimeControl "5400+30"]

{[%evp 12,41,30,29,27,24,27,27,17,13,14,19,41,36,18,21,27,22,35,25,25,25,25,27,28,12,10,4,10,8,25,34]} 1. e4 {[%emt 0:00:01]} e6 {[%emt 0:02:09]} 2. d4 {[%emt 0:00:34]} d5 {[%emt 0:00:06]} 3. Nd2 {[%emt 0:01:31]} c5 {[%emt 0:00:59]} 4. Ngf3 {[%emt 0:01:31]} Nc6 {[%emt 0:01:03]} 5. exd5 {[%emt 0:00:16]} exd5 {[%emt 0:00:07]} 6. Bb5 {[%emt 0:00:13]} Qe7+ {[%emt 0:02:21]} 7. Be2 {[%emt 0:04:51]} Qc7 {[%emt 0:00:06] C09: French Tarrasch: 3...c5 4 exd5 exd5 5 Ngf3 Nc6.} 8. dxc5 {[%emt 0:01:36]} Bxc5 {[%emt 0:01:30]} 9. O-O {[%emt 0:01:15]} Nf6 {[%emt 0:00:07]} 10. Nb3 {[%emt 0:01:43]} Be7 {[%emt 0:03:31]} 11. Bg5 {[%emt 0:02:14]} O-O {[%emt 0:01:24]} 12. c3 {[%emt 0:01:46]} Be6 {[%emt 0:02:02]} 13. Nbd4 {[%emt 0:00:45]} Rae8 {[%emt 0:01:52]} 14. h3 {[%emt 0:04:22] [#]} Nxd4 $146 {[%emt 0:05:42]} ({Predecessor:} 14... h6 15. Bh4 Nh5 16. Bxe7 Rxe7 17. Re1 Rfe8 18. Qd2 Nf6 19. Bd3 Qb6 20. Re2 Bc8 {1-0 Collins,S (2433)-De Verdier,M (2306) IRL-chT Dublin 2019 (2.1)}) 15. Nxd4 {[%emt 0:01:24]} ({But not} 15. Qxd4 Bc5 16. Qh4 Ne4 $11) 15... Ng4 {[%emt 0:01:30][%mdl 64] [#] Discovered Attack} 16. Bxg4 {[%emt 0:01:38]} Bxg5 {[%emt 0:00:07]} 17. Bf3 {[%emt 0:01:28]} Bf6 {[%emt 0:00:35]} 18. Qd2 {[%emt 0:00:50]} Qb6 {[%emt 0:00:17]} 19. Rad1 {[%emt 0:02:11]} Bxd4 {[%emt 0:01:39]} 20. cxd4 {[%emt 0:00:07]} f6 {[%emt 0:02:08]} 21. Rfe1 {[%emt 0:01:26] Weighted Error Value: White=0.02 (flawless) /Black=0.04 (flawless)} 1/2-1/2